bitfinex-derivatives/quotes_SOLF0:USTF0_20250905
["timestamp","ask_amount","ask_price","bid_price","bid_amount"]
[1757112436599,1.35032227,204.36,204.33,4.51637026]
[1757112436800,1.35032227,204.36,204.3,7.71]
[1757112437002,1.35032227,204.36,204.31,4.5150814]
[1757112437208,1.35032227,204.36,204.32,4.5150814]
[1757112437501,7.88,204.38,204.33,4.5150814]
[1757112437701,7.88,204.38,204.34,7.71]
[1757112437910,7.62789285,204.39,204.34,7.71]
[1757112438303,7.73,204.38,204.34,7.71]
[1757112439006,7.62789285,204.39,204.34,7.71]
[1757112439407,7.73,204.38,204.34,7.71]
[1757112439604,7.62789285,204.39,204.34,7.71]
[1757112439909,7.73,204.38,204.34,7.71]
[1757112440104,7.62789285,204.39,204.34,7.71]
[1757112441908,7.73,204.38,204.34,7.71]
[1757112442411,7.62789285,204.39,204.34,7.71]
[1757112442807,15.35789285,204.39,204.28,7.43]
[1757112443011,15.35789285,204.39,204.29,4.51470673]
[1757112443211,15.35789285,204.39,204.31,7.43]
[1757112443407,15.35789285,204.39,204.32,4.51470673]
[1757112443608,15.35789285,204.39,204.33,11.94470673]
[1757112443903,15.35789285,204.39,204.33,7.43]
[1757112449617,13.24927644,204.39,204.33,7.43]
[1757112449815,15.35789285,204.39,204.33,7.43]
[1757112450617,13.24927644,204.39,204.33,7.43]
[1757112453322,7.73,204.38,204.34,11.94720181]
[1757112453518,5.51927644,204.39,204.34,7.43]
[1757112453718,7.73,204.38,204.34,7.43]
[1757112454120,5.51927644,204.39,204.34,7.43]
[1757112454422,7.73,204.38,204.34,7.43]
[1757112454921,5.51927644,204.39,204.34,7.43]
[1757112455719,7.73,204.38,204.28,7.43]
[1757112455918,7.73,204.38,204.29,4.51778815]
[1757112456121,13.24927644,204.38,204.31,7.43]
[1757112456324,13.24927644,204.38,204.32,4.51778815]
[1757112456621,7.73,204.37,204.34,7.43]
[1757112456823,7.73,204.37,204.28,7.43]
[1757112457024,7.73,204.37,204.3,7.43]
[1757112457222,7.73,204.37,204.31,4.5185013]
[1757112457421,7.73,204.37,204.32,4.5185013]
[1757112457722,7.73,204.37,204.34,7.43]
[1757112458719,5.51927644,204.38,204.28,7.43]
[1757112458924,5.51927644,204.39,204.3,7.43]
[1757112459125,5.51927644,204.39,204.32,7.43]
[1757112459324,5.51927644,204.39,204.33,4.5189813]
[1757112459625,7.73,204.38,204.35,7.43]
[1757112459825,7.73,204.38,204.28,7.43]
[1757112460025,7.73,204.38,204.3,7.43]
[1757112460322,7.73,204.38,204.32,7.43]
[1757112460524,7.73,204.38,204.33,4.5213023]
[1757112460728,7.73,204.38,204.35,7.43]
[1757112460921,7.73,204.38,204.29,7.43]
[1757112461122,7.73,204.38,204.31,7.43]
[1757112461321,7.73,204.38,204.33,7.43]
[1757112461521,7.73,204.38,204.35,7.43]
[1757112461825,7.73,204.38,204.29,7.43]
[1757112462021,7.73,204.38,204.3,4.52121295]
[1757112462221,7.73,204.38,204.32,7.43]
[1757112462424,7.73,204.38,204.31,4.52121295]
[1757112462425,7.73,204.38,204.34,7.43]
[1757112462622,7.73,204.38,204.35,11.95121295]
[1757112462822,7.73,204.38,204.35,7.43]
[1757112463023,5.51927644,204.39,204.29,7.43]
[1757112463222,5.51927644,204.39,204.3,4.52120543]
[1757112463527,5.51927644,204.39,204.32,7.43]
[1757112463825,5.51927644,204.39,204.33,4.52120543]
[1757112464127,13.24927644,204.39,204.34,4.52120543]
[1757112464325,13.24927644,204.39,204.36,7.43]
[1757112465828,13.24927644,204.39,204.31,7.43]
[1757112466024,13.24927644,204.39,204.33,7.43]
[1757112466223,13.24927644,204.39,204.32,4.51996728]
[1757112466224,7.73,204.39,204.34,4.51996728]
[1757112466425,7.73,204.39,204.36,7.43]
[1757112466625,5.51927644,204.4,204.31,7.43]
[1757112466825,5.51927644,204.41,204.33,7.43]
[1757112467022,5.51927644,204.41,204.35,7.43]
[1757112467227,5.51927644,204.42,204.36,4.51903906]
[1757112467527,7.73,204.41,204.38,7.43]
[1757112467726,7.73,204.41,204.34,7.43]
[1757112467923,7.73,204.41,204.35,4.51669389]
[1757112468117,7.73,204.41,204.36,4.51669389]
[1757112468323,7.73,204.41,204.38,7.43]
[1757112468718,7.73,204.41,204.34,7.85]
[1757112469026,7.73,204.41,204.36,7.85]
[1757112469228,7.73,204.41,204.37,4.51561326]
[1757112469530,7.73,204.41,204.34,7.85]
[1757112469827,7.73,204.41,204.35,4.51512581]
[1757112470022,7.73,204.41,204.37,7.85]
[1757112470229,7.73,204.41,204.34,7.85]
[1757112470418,7.73,204.41,204.36,7.85]
[1757112470622,7.64,204.42,204.38,7.85]
[1757112470828,5.51927644,204.43,204.38,7.85]
[1757112471022,7.64,204.42,204.38,7.85]
[1757112471228,5.51927644,204.43,204.38,7.85]
[1757112471424,7.64,204.42,204.38,7.85]
[1757112471825,7.64,204.42,204.34,7.85]
[1757112472030,7.64,204.42,204.35,4.51365804]
[1757112472235,7.64,204.42,204.36,4.51365804]
[1757112472429,7.64,204.42,204.37,4.51365804]
[1757112472631,7.64,204.42,204.34,7.85]
[1757112472832,7.64,204.42,204.35,4.51352086]
[1757112473026,7.64,204.42,204.36,4.51352086]
[1757112473230,7.64,204.42,204.37,4.51352086]
[1757112473430,7.64,204.42,204.34,7.85]
[1757112473728,7.64,204.42,204.35,4.5177281]
[1757112473933,7.64,204.42,204.36,4.5177281]
[1757112474128,7.64,204.42,204.37,4.5177281]
[1757112474433,7.64,204.42,204.34,7.85]
[1757112474634,7.64,204.42,204.35,4.51737111]
[1757112474933,7.64,204.42,204.36,4.51737111]
[1757112475132,7.64,204.42,204.37,4.51737111]
[1757112475327,7.64,204.42,204.34,7.85]
[1757112475525,7.64,204.43,204.35,12.36701476]
[1757112475728,7.64,204.42,204.36,4.51701476]
[1757112475929,7.64,204.42,204.37,4.51701476]
[1757112476133,7.64,204.42,204.35,7.85]
[1757112476434,7.64,204.42,204.36,4.51707925]
[1757112476633,7.62789285,204.43,204.3,17.68861641]
[1757112476826,7.64,204.42,204.32,7.85]
[1757112477031,7.64,204.42,204.33,4.51677123]
[1757112477233,7.64,204.42,204.35,7.85]
[1757112477433,7.64,204.42,204.36,4.51677123]
[1757112477636,7.64,204.42,204.35,7.85]
[1757112477935,7.64,204.42,204.36,4.51528799]
[1757112478131,7.62789285,204.43,204.37,12.36662879]
[1757112478332,7.62789285,204.43,204.37,7.85]
[1757112478532,7.64,204.42,204.37,7.85]
[1757112479235,7.62789285,204.43,204.37,7.85]
[1757112479437,7.64,204.42,204.37,7.85]
[1757112479636,7.62789285,204.43,204.37,7.85]
[1757112479935,7.64,204.42,204.37,7.85]
[1757112480336,7.62789285,204.43,204.37,7.85]
[1757112480933,7.64,204.42,204.37,7.85]
[1757112481427,7.62789285,204.43,204.37,7.85]
[1757112481736,7.64,204.42,204.37,7.85]
[1757112481936,7.62789285,204.43,204.37,7.85]
[1757112482132,7.64,204.42,204.37,7.85]
[1757112482436,7.64,204.42,204.31,7.85]
[1757112482637,7.64,204.42,204.32,4.51789334]
[1757112482936,7.64,204.42,204.34,7.85]
[1757112483238,7.64,204.42,204.36,7.85]
[1757112488847,9.74861641,204.42,204.36,7.85]
[1757112490846,15.26789285,204.42,204.31,7.85]
[1757112491047,15.26789285,204.42,204.33,7.85]
[1757112491247,15.26789285,204.42,204.34,4.51469025]
[1757112491547,15.26789285,204.42,204.33,7.85]
[1757112491749,15.26789285,204.42,204.34,4.51611012]
[1757112491948,15.26789285,204.42,204.33,7.85]
[1757112492148,15.26789285,204.42,204.34,4.51688082]
[1757112492345,5.51927644,204.41,204.33,7.85]
[1757112492542,7.64,204.4,204.34,4.51701019]
[1757112492848,7.64,204.4,204.33,7.85]
[1757112493055,7.64,204.4,204.34,4.51670763]
[1757112493350,7.64,204.38,204.27,7.85]
[1757112493546,7.64,204.38,204.29,7.85]
[1757112493751,7.64,204.38,204.31,7.85]
[1757112493950,7.64,204.38,204.32,4.51730394]
[1757112494152,7.64,204.4,204.34,7.85]
[1757112494452,7.64,204.4,204.35,4.51872566]
[1757112494641,7.64,204.4,204.34,7.85]
[1757112494848,7.64,204.4,204.35,4.51878417]
[1757112495040,7.64,204.4,204.3,7.85]
[1757112495240,7.64,204.4,204.31,4.51883955]
[1757112495445,2.10861641,204.41,204.25,35.14]
[1757112495446,5.51927644,204.42,204.33,7.85]
[1757112495646,7.64,204.43,204.35,7.85]
[1757112495842,7.64,204.43,204.36,4.51883955]
[1757112496048,7.64,204.43,204.37,12.36883955]
[1757112496248,7.64,204.43,204.37,7.85]
[1757112496441,13.15927644,204.43,204.37,7.85]
[1757112496845,2.10861641,204.45,204.37,7.85]
[1757112496846,5.51927644,204.42,204.37,7.85]
[1757112497050,7.64,204.41,204.33,7.85]
[1757112497254,7.64,204.41,204.34,4.5187088]
[1757112497458,1.34917459,204.4,204.35,4.5187088]
[1757112497652,8.98917459,204.4,204.33,7.85]
[1757112497955,7.64,204.39,204.35,7.85]
[1757112498149,1.34917459,204.4,204.35,7.85]
[1757112498346,7.64,204.39,204.33,7.85]
[1757112498554,7.64,204.39,204.34,4.51967038]
[1757112498751,7.64,204.39,204.35,4.51967038]
[1757112498952,7.64,204.39,204.33,7.59]
[1757112499152,7.64,204.39,204.35,7.59]
[1757112499354,7.64,204.39,204.36,4.51966117]
[1757112499555,1.34917459,204.4,204.33,7.59]
[1757112499748,1.34917459,204.4,204.34,4.51902693]
[1757112499953,1.34917459,204.4,204.36,7.59]
[1757112500150,1.34917459,204.4,204.33,8.93917459]
[1757112500355,1.34917459,204.4,204.34,4.51822352]
[1757112500561,9.42917459,204.4,204.36,7.59]
[1757112500856,9.42917459,204.4,204.34,7.59]
[1757112501058,9.42917459,204.4,204.35,4.51791136]
[1757112501352,9.42917459,204.4,204.37,7.59]
[1757112503253,1.34917459,204.4,204.33,1.34917459]
[1757112503452,8.08,204.39,204.34,12.11030104]
[1757112503649,1.34917459,204.4,204.35,12.11030104]
[1757112503961,8.08,204.39,204.36,12.11030104]
[1757112504154,8.08,204.39,204.36,7.59]
[1757112505854,8.08,204.39,204.33,7.59]
[1757112506053,9.42917459,204.4,204.34,12.11099535]
[1757112506249,1.34917459,204.4,204.35,4.52099535]
[1757112506451,1.34917459,204.38,204.32,7.59]
[1757112506656,1.34917459,204.38,204.33,12.11182269]
[1757112506855,1.34917459,204.38,204.34,4.52182269]
[1757112507060,1.34917459,204.38,204.33,7.59]
[1757112507262,1.34917459,204.38,204.34,4.52179394]
[1757112507455,1.34917459,204.38,204.33,7.59]
[1757112507762,8.08,204.37,204.34,4.52192741]
[1757112507955,1.34917459,204.38,204.33,7.59]
[1757112508156,8.08,204.37,204.34,12.1119597]
[1757112508358,8.08,204.37,204.34,7.59]
[1757112508764,1.34917459,204.36,204.3,7.59]
[1757112508962,1.34917459,204.36,204.31,4.521256]
[1757112509161,8.08,204.35,204.32,12.111256]
[1757112509357,8.08,204.35,204.33,4.521256]
[1757112509567,8.08,204.35,204.32,7.59]
[1757112509568,8.08,204.35,204.34,4.521256]
[1757112511867,8.08,204.35,204.29,7.59]
[1757112512068,8.08,204.32,204.3,4.5212946]
[1757112512270,8.08,204.32,204.31,4.5212946]
[1757112514273,8.08,204.32,204.31,4.51783068]
[1757112514668,8.08,204.32,204.31,4.51734345]
[1757112515268,8.08,204.32,204.29,7.59]
[1757112515269,8.08,204.32,204.25,7.59]
[1757112515465,8.08,204.3,204.27,7.59]
[1757112515669,8.08,204.3,204.28,4.51696155]
[1757112515871,1.34917459,204.29,204.22,1.34917459]
[1757112516067,1.34917459,204.29,204.23,12.10811395]
[1757112516271,1.34917459,204.29,204.24,4.51811395]
[1757112516471,8.08,204.28,204.25,12.10811395]
[1757112516773,8.08,204.28,204.26,4.51811395]
[1757112516965,8.08,204.28,204.27,4.51811395]
[1757112518768,8.08,204.28,204.22,1.34917459]
[1757112518769,8.08,204.28,204.22,8.93917459]
[1757112518964,8.08,204.26,204.23,12.10354459]
[1757112519166,8.08,204.26,204.24,4.51354459]
[1757112519363,8.08,204.26,204.25,4.51354459]
[1757112521978,8.08,204.26,204.16,7.59]
[1757112522179,9.42917459,204.23,204.17,4.5120517]
[1757112522375,9.42917459,204.23,204.19,7.59]
[1757112522575,8.08,204.22,204.2,4.5120517]
[1757112522779,8.08,204.22,204.19,7.59]
[1757112522975,8.08,204.22,204.2,4.5099609]
[1757112523177,8.08,204.22,204.19,7.59]
[1757112523679,8.08,204.22,204.16,7.59]
[1757112523874,1.34917459,204.23,204.18,7.59]
[1757112524076,1.34917459,204.23,204.2,7.59]
[1757112524280,9.42917459,204.23,204.2,7.59]
[1757112525470,1.34917459,204.23,204.2,7.59]
[1757112525669,9.42917459,204.23,204.16,7.59]
[1757112525870,9.42917459,204.23,204.17,4.50420829]
[1757112526069,8.08,204.22,204.19,7.59]
[1757112531177,8.08,204.22,204.15,1.34917459]
[1757112531384,8.08,204.22,204.17,8.13]
[1757112531882,8.08,204.22,204.16,8.13]
[1757112532083,8.08,204.22,204.18,8.13]
[1757112532377,8.08,204.22,204.16,8.13]
[1757112534187,1.34917459,204.21,204.16,8.13]
[1757112534374,1.34917459,204.21,204.15,1.34917459]
[1757112534578,1.34917459,204.21,204.12,120.02]
[1757112534579,1.34917459,204.21,204.13,1.34917459]
[1757112534779,1.34917459,204.21,204.15,8.13]
[1757112539780,1.34917459,204.2,204.15,8.13]
[1757112539986,1.34917459,204.2,204.14,8.13]
[1757112540183,7.81,204.17,204.14,8.13]
[1757112540386,9.15917459,204.18,204.12,8.13]
[1757112540587,1.34917459,204.16,204.14,8.13]
[1757112540792,9.15917459,204.16,204.14,8.13]
[1757112541492,1.34917459,204.16,204.14,8.13]
[1757112542887,1.34917459,204.16,204.1,8.13]
[1757112543091,1.34917459,204.16,204.11,4.48741988]
[1757112543289,1.34917459,204.16,204.13,8.13]
[1757112543599,1.34917459,204.16,204.14,8.13]
[1757112546686,9.15917459,204.16,204.1,8.13]
[1757112546888,7.81,204.15,204.08,1.34917459]
[1757112547086,7.81,204.15,204.1,8.13]
[1757112547388,9.15917459,204.16,204.09,8.13]
[1757112547582,9.15917459,204.16,204.1,4.48925477]
[1757112547784,9.15917459,204.16,204.09,8.13]
[1757112547988,9.15917459,204.16,204.1,4.48923775]
[1757112548192,9.15917459,204.16,204.09,8.13]
[1757112548385,9.15917459,204.16,204.1,4.48998924]
[1757112548590,9.15917459,204.16,204.09,8.13]
[1757112548789,9.15917459,204.16,204.1,4.49003777]
[1757112548990,9.15917459,204.16,204.09,8.13]
[1757112549194,9.15917459,204.16,204.04,5.26312173]
[1757112549195,7.81,204.13,204.1,8.13]
[1757112549890,1.34917459,204.12,204.06,8.13]
[1757112550094,9.15917459,204.12,204.07,4.49304167]
[1757112550394,9.15917459,204.12,204.06,8.13]
[1757112550590,9.15917459,204.12,204.07,4.49328227]
[1757112550793,9.15917459,204.12,204.06,8.13]
[1757112550992,9.15917459,204.12,204.08,8.13]
[1757112551196,9.15917459,204.12,204.06,8.13]
[1757112551395,9.15917459,204.12,204.07,4.4932973]
[1757112551593,9.15917459,204.12,204.06,8.13]
[1757112551799,9.15917459,204.12,204.07,4.4933576]
[1757112551993,9.15917459,204.12,204.05,1.34917459]
[1757112551994,9.15917459,204.12,204.06,8.13]
[1757112552292,7.81,204.11,204.08,8.13]
[1757112552499,7.81,204.11,204.05,1.34917459]
[1757112552694,7.81,204.11,204.07,8.13]
[1757112552891,7.81,204.11,204.05,1.34917459]
[1757112552892,7.81,204.11,204.09,8.13]
[1757112553199,1.34917459,204.17,204.11,8.13]
[1757112556900,9.15917459,204.19,204.11,8.13]
[1757112557604,7.81,204.19,204.11,8.13]
[1757112558300,7.81,204.19,204.08,2.1123343]
[1757112558301,7.81,204.19,204.13,7.97]
[1757112560996,7.81,204.19,204.07,7.97]
[1757112561305,7.81,204.19,204.09,7.97]
[1757112561495,7.81,204.19,204.1,4.49868386]
[1757112561802,7.81,204.19,204.11,4.49868386]
[1757112561997,7.81,204.19,204.12,4.49868386]
[1757112562199,7.81,204.19,204.09,7.97]
[1757112562401,7.81,204.19,204.1,4.50106227]
[1757112562597,7.81,204.19,204.11,4.50106227]
[1757112562902,7.81,204.19,204.12,4.50106227]
[1757112563202,7.81,204.19,204.09,7.97]
[1757112563408,7.81,204.19,204.11,7.97]
[1757112563597,7.81,204.19,204.12,4.50214439]
[1757112563798,7.81,204.19,204.11,7.97]
[1757112563998,7.81,204.19,204.12,4.50211463]
[1757112564202,7.81,204.19,204.11,7.97]
[1757112564400,7.81,204.19,204.12,4.50329046]
[1757112564601,7.81,204.19,204.11,7.97]
[1757112564904,7.81,204.19,204.12,4.50459913]
[1757112565105,7.81,204.19,204.11,7.97]
[1757112565407,7.81,204.19,204.12,4.50599877]
[1757112565602,7.81,204.19,204.11,7.97]
[1757112565905,7.93,204.17,204.12,4.50604563]
[1757112566105,7.93,204.17,204.08,7.97]
[1757112566307,7.93,204.17,204.1,7.97]
[1757112566502,7.93,204.2,204.12,7.97]
[1757112566701,7.93,204.2,204.14,7.97]
[1757112571605,7.93,204.2,204.15,4.51014553]
[1757112571910,7.93,204.2,204.1,7.97]
[1757112572209,7.93,204.2,204.12,7.97]
[1757112572511,2.1123343,204.21,204.14,7.97]
[1757112572709,2.1123343,204.21,204.15,4.51015788]
[1757112572909,10.0423343,204.21,204.16,4.51015788]
[1757112573107,10.0423343,204.21,204.12,7.97]
[1757112573302,10.0423343,204.21,204.11,4.4088]
[1757112573303,10.0423343,204.21,204.14,7.97]
[1757112573508,10.0423343,204.21,204.15,4.51054576]
[1757112573711,7.93,204.2,204.17,7.97]
[1757112574403,7.93,204.2,204.18,4.51010538]
[1757112574708,7.93,204.2,204.12,7.97]
[1757112574904,7.93,204.2,204.14,7.97]
[1757112575109,7.93,204.2,204.15,4.50985025]
[1757112575313,7.93,204.2,204.17,7.97]
[1757112575612,7.93,204.2,204.12,7.97]
[1757112575802,7.93,204.2,204.14,7.97]
[1757112576006,7.93,204.2,204.16,7.97]
[1757112576206,7.93,204.2,204.17,12.47963699]
[1757112576412,7.93,204.2,204.18,4.50963699]
[1757112576614,7.93,204.2,204.17,7.97]
[1757112576808,7.93,204.2,204.18,4.5100905]
[1757112577003,7.93,204.2,204.17,7.97]
[1757112577210,7.93,204.2,204.18,4.5100905]
[1757112577409,10.0423343,204.23,204.12,4.4086]
[1757112577610,10.0423343,204.23,204.14,7.97]
[1757112577811,10.0423343,204.23,204.15,4.51066592]
[1757112578006,10.0423343,204.23,204.16,4.51066592]
[1757112578216,10.0423343,204.23,204.17,4.51066592]
[1757112578515,2.1123343,204.23,204.18,4.51066592]
[1757112578716,7.93,204.22,204.16,7.97]
[1757112578917,2.1123343,204.23,204.17,4.50908716]
[1757112579114,2.1123343,204.23,204.18,4.50908716]
[1757112579316,7.93,204.22,204.15,7.97]
[1757112579513,7.93,204.22,204.16,4.50964255]
[1757112579711,2.1123343,204.2,204.17,4.50964255]
[1757112580014,7.93,204.19,204.12,7.97]
[1757112580215,7.93,204.19,204.13,4.51049493]
[1757112580415,2.1123343,204.2,204.14,4.51049493]
[1757112580614,2.1123343,204.2,204.15,4.51049493]
[1757112580916,7.93,204.19,204.16,4.51049493]
[1757112581111,2.1123343,204.2,204.17,4.51049493]
[1757112581307,7.93,204.19,204.12,7.97]
[1757112581506,7.93,204.19,204.13,4.51182139]
[1757112581717,7.93,204.19,204.14,4.51182139]
[1757112581908,7.93,204.19,204.15,12.48182139]
[1757112582114,7.93,204.19,204.16,12.48182139]
[1757112582318,7.93,204.19,204.17,4.51182139]
[1757112582515,7.93,204.19,204.16,7.97]
[1757112582711,7.93,204.19,204.17,4.512414]
[1757112582913,2.1123343,204.2,204.16,7.97]
[1757112583117,2.1123343,204.2,204.17,4.51239687]
[1757112583418,7.93,204.19,204.16,7.97]
[1757112583717,7.93,204.19,204.17,4.51301569]
[1757112583912,7.93,204.19,204.16,7.97]
[1757112584119,7.93,204.19,204.17,4.51303282]
[1757112584418,7.93,204.19,204.16,7.97]
[1757112584716,7.93,204.19,204.17,4.51343512]
[1757112584917,7.93,204.19,204.16,7.97]
[1757112585123,2.1123343,204.2,204.17,4.51343512]
[1757112585312,7.93,204.19,204.16,7.97]
[1757112585508,7.93,204.19,204.17,4.51404724]
[1757112585718,7.93,204.19,204.16,7.97]
[1757112585919,7.93,204.19,204.17,4.51497386]
[1757112586213,7.93,204.19,204.09,4.4093]
[1757112586415,7.93,204.19,204.11,7.97]
[1757112586616,7.93,204.19,204.13,7.97]
[1757112586911,7.93,204.19,204.14,4.51500606]
[1757112587118,7.93,204.19,204.15,12.48500606]
[1757112587318,7.93,204.19,204.16,12.48500606]
[1757112587519,2.1123343,204.2,204.18,7.97]
[1757112588114,10.0423343,204.2,204.18,7.97]
[1757112589322,10.0423343,204.2,204.12,7.85]
[1757112589516,10.0423343,204.2,204.14,7.85]
[1757112589717,2.1123343,204.2,204.15,12.36424752]
[1757112589917,7.41,204.19,204.16,4.51424752]
[1757112590117,7.41,204.19,204.17,4.51424752]
[1757112590318,7.41,204.19,204.1,7.85]
[1757112590521,7.41,204.19,204.12,7.85]
[1757112590812,7.41,204.19,204.13,4.51535681]
[1757112591018,7.41,204.19,204.15,7.85]
[1757112591217,7.41,204.19,204.16,12.36535681]
[1757112591418,7.41,204.19,204.17,4.51535681]
[1757112591619,7.41,204.19,204.16,7.85]
[1757112591919,7.41,204.19,204.17,4.51517356]
[1757112592221,7.41,204.19,204.16,7.85]
[1757112592410,7.41,204.19,204.17,4.51515415]
[1757112592610,7.41,204.19,204.16,7.85]
[1757112592814,7.41,204.19,204.17,4.51513702]
[1757112593111,7.41,204.19,204.16,7.85]
[1757112593414,7.41,204.19,204.17,4.51513073]
[1757112593616,7.41,204.19,204.16,7.85]
[1757112593913,7.41,204.19,204.17,4.51281526]
[1757112594112,7.41,204.19,204.16,7.85]
[1757112594312,7.41,204.19,204.17,4.51292061]
[1757112594510,7.41,204.19,204.16,7.85]
[1757112594718,7.41,204.19,204.17,4.51292061]
[1757112595022,7.41,204.19,204.16,7.85]
[1757112595221,7.41,204.19,204.17,4.51292061]
[1757112595419,7.41,204.19,204.16,7.85]
[1757112595618,7.41,204.19,204.17,4.51393474]
[1757112595917,7.41,204.19,204.16,7.85]
[1757112596119,7.41,204.19,204.17,4.51393474]
[1757112596320,7.41,204.19,204.16,7.85]
[1757112596519,7.41,204.19,204.17,4.51471908]
[1757112596713,7.41,204.19,204.16,7.85]
[1757112596916,7.41,204.19,204.17,4.51463]
[1757112597219,7.41,204.19,204.18,4.51562994]
[1757112599211,26.42,204.26,204.19,7.85]
[1757112599212,7.41,204.22,204.19,7.85]
[1757112599612,7.41,204.22,204.09,7.85]
[1757112599814,7.41,204.22,204.1,4.51493095]
[1757112600011,7.41,204.22,204.12,7.85]
[1757112600215,12.92927644,204.25,204.14,7.85]
[1757112600416,7.41,204.25,204.16,7.85]
[1757112600712,2.1123343,204.23,204.17,12.36493095]
[1757112600916,7.41,204.22,204.18,4.51493095]
[1757112601217,2.1123343,204.23,204.19,4.51493095]
[1757112601418,7.41,204.22,204.2,4.51493095]
[1757112601618,7.41,204.22,204.11,7.85]
[1757112601814,7.41,204.22,204.13,7.85]
[1757112602117,7.41,204.22,204.15,7.85]
[1757112602314,7.41,204.22,204.16,4.51622295]
[1757112602517,7.41,204.22,204.17,4.51622295]
[1757112602714,7.41,204.22,204.18,4.51622295]
[1757112602917,2.1123343,204.23,204.19,4.51622295]
[1757112603123,7.41,204.22,204.16,7.85]
[1757112603328,2.1123343,204.23,204.17,4.51645078]
[1757112603526,7.41,204.22,204.18,12.36645078]
[1757112603728,7.41,204.22,204.19,4.51645078]
[1757112604024,7.41,204.22,204.18,7.85]
[1757112604227,7.41,204.22,204.19,4.51637524]
[1757112604426,7.41,204.22,204.15,7.85]
[1757112604726,7.41,204.22,204.16,4.516432]
[1757112604927,7.41,204.22,204.17,4.516432]
[1757112605124,7.41,204.19,204.18,4.516432]
[1757112605823,7.41,204.19,204.12,7.85]
[1757112606024,7.41,204.19,204.13,4.52085948]
[1757112606224,2.1123343,204.2,204.14,4.52085948]
[1757112606425,5.51927644,204.23,204.16,7.85]
[1757112606626,9.5223343,204.22,204.17,4.52085948]
[1757112606823,9.5223343,204.22,204.19,7.85]
[1757112607126,7.41,204.21,204.11,7.85]
[1757112607326,7.41,204.21,204.13,7.85]
[1757112607527,7.41,204.21,204.14,4.52445848]
[1757112607727,7.41,204.21,204.15,4.52445848]
[1757112607923,2.1123343,204.19,204.16,4.52445848]
[1757112608129,7.41,204.18,204.17,4.52445848]
[1757112608523,2.1123343,204.19,204.17,4.52445848]
[1757112608719,2.1123343,204.19,204.08,7.85]
[1757112608924,2.1123343,204.19,204.1,7.85]
[1757112609228,2.1123343,204.19,204.12,7.85]
[1757112609422,2.1123343,204.19,204.14,7.85]
[1757112609627,2.1123343,204.19,204.15,4.52777616]
[1757112609824,2.1123343,204.19,204.16,12.37777616]
[1757112610024,2.1123343,204.19,204.17,4.52777616]
[1757112610228,2.1123343,204.19,204.16,7.85]
[1757112610229,2.1123343,204.19,204.18,4.52777616]
[1757112612335,9.5223343,204.19,204.18,4.52777616]
[1757112617439,7.41,204.19,204.18,4.52777616]
[1757112619141,7.41,204.19,204.16,7.85]
[1757112619441,1.35194028,204.18,204.17,4.52662631]
[1757112623243,1.35194028,204.18,204.17,12.34662631]
[1757112624447,9.27194028,204.18,204.17,4.52662631]
[1757112625038,1.35194028,204.18,204.17,4.52662631]